bitfinex/quotes_SOLUSD_20250930
["timestamp","ask_amount","ask_price","bid_price","bid_amount"]
[1759191565834,34.24,212.49,212.45,0.67]
[1759191566136,34.24,212.49,212.46,0.67]
[1759191566347,34.24,212.49,212.4,26.0]
[1759191566512,0.7,212.48,212.39,0.67]
[1759191566714,3.10132505,212.47,212.39,0.67]
[1759191566929,4.70698987,212.45,212.39,0.67]
[1759191567240,34.24,212.44,212.39,0.67]
[1759191567626,34.24,212.44,212.37,4.70874776]
[1759191567815,38.04132505,212.44,212.36,5.37897063]
[1759191568016,3.10132505,212.43,212.36,0.67]
[1759191568222,3.80132505,212.43,212.36,5.37892598]
[1759191568428,3.10132505,212.42,212.36,5.37892598]
[1759191568754,37.34132505,212.44,212.37,0.67]
[1759191568936,42.74871265,212.44,212.34,26.0]
[1759191569139,8.41682956,212.43,212.32,0.1]
[1759191569325,3.10132505,212.42,212.32,0.1]
[1759191569529,3.10132505,212.41,212.32,4.80985896]
[1759191569729,38.06132505,212.4,212.32,4.80985896]
[1759191569959,3.80132505,212.39,212.32,0.1]
[1759191570554,0.7,212.39,212.32,0.1]
[1759191570726,0.7,212.39,212.32,4.80980325]
[1759191570926,4.70854129,212.38,212.32,0.1]
[1759191571659,4.70854129,212.38,212.32,4.80972445]
[1759191571863,37.36132505,212.4,212.33,0.67]
[1759191572152,38.96809835,212.4,212.33,0.67]
[1759191572524,34.26,212.4,212.33,0.67]
[1759191572725,18.91109852,212.39,212.32,0.1]
[1759191572971,4.61550451,212.36,212.32,0.1]
[1759191573130,34.4,212.35,212.32,0.1]
[1759191573440,35.1,212.35,212.32,0.1]
[1759191573838,35.08,212.34,212.32,0.1]
[1759191574352,34.38,212.33,212.32,0.1]
[1759191574549,34.4,212.33,212.32,5.47987189]
[1759191575360,34.4,212.37,212.32,17.25455161]
[1759191575662,34.4,212.38,212.35,26.0]
[1759191575874,34.4,212.39,212.36,0.67]
[1759191576840,34.4,212.39,212.37,0.67]
[1759191577137,34.4,212.39,212.37,5.37866896]
[1759191577365,34.4,212.39,212.37,0.67]
[1759191577765,34.4,212.39,212.38,0.67]
[1759191578256,33.94,212.44,212.38,0.67]
[1759191578559,34.38,212.43,212.38,0.67]
[1759191578938,34.38,212.43,212.35,42.4820049]
[1759191578939,34.38,212.43,212.4,4.70809792]
[1759191579137,34.38,212.43,212.41,0.67]
[1759191580036,34.38,212.43,212.36,16.48144659]
[1759191580259,3.12520713,212.49,212.39,26.0]
[1759191580461,34.34,212.48,212.4,0.67]
[1759191580665,4.70588235,212.5,212.4,0.67]
[1759191580840,35.04,212.49,212.4,0.67]
[1759191581041,35.04,212.49,212.4,5.37788481]
[1759191581577,39.74610981,212.49,212.4,5.37788481]
[1759191581944,5.31550451,212.48,212.38,5.37832179]
[1759191582157,5.31550451,212.48,212.39,0.67]
[1759191582466,34.34,212.47,212.39,0.67]
[1759191582658,34.34,212.47,212.38,4.70832179]
[1759191582659,0.7,212.46,212.36,5.37881525]
[1759191582858,0.7,212.45,212.36,4.70881525]
[1759191583065,39.74663577,212.47,212.38,4.70854129]
[1759191583237,0.7,212.47,212.39,0.67]
[1759191583566,34.32,212.46,212.39,0.67]
[1759191583772,4.70645621,212.48,212.39,0.67]
[1759191584075,34.34,212.45,212.41,26.0]
[1759191584358,34.34,212.45,212.39,0.67]
[1759191584544,34.34,212.45,212.41,26.0]
[1759191585155,34.34,212.45,212.4,4.708015]
[1759191585739,34.34,212.45,212.4,5.378015]
[1759191586055,34.34,212.45,212.4,4.708015]
[1759191586659,0.7,212.44,212.4,4.708015]
[1759191587163,0.7,212.44,212.39,26.0]
[1759191587164,0.7,212.44,212.38,31.3784951]
[1759191587370,0.7,212.43,212.38,4.7084951]
[1759191588460,0.7,212.42,212.35,4.70920649]
[1759191588959,34.28,212.41,212.36,0.67]
[1759191589350,34.28,212.41,212.38,26.0]
[1759191589559,34.28,212.41,212.38,26.67]
[1759191590167,34.28,212.41,212.38,26.0]
[1759191590475,34.28,212.41,212.39,0.67]
[1759191591344,34.94,212.41,212.34,0.7]
[1759191591950,39.64804312,212.41,212.33,4.70965007]
[1759191592165,39.64804312,212.41,212.35,26.0]
[1759191592864,39.64804312,212.41,212.33,4.70965007]
[1759191593061,0.66,212.4,212.32,5.50980621]
[1759191594877,4.7083196,212.39,212.32,5.50980621]
[1759191595060,0.66,212.38,212.32,0.1]
[1759191597066,4.708763,212.37,212.32,0.1]
[1759191597372,34.88,212.36,212.32,0.1]
[1759191597754,0.66,212.35,212.32,0.1]
[1759191597956,34.22,212.36,212.32,4.80978704]
[1759191598154,34.22,212.35,212.32,5.50978704]
[1759191598366,5.36856906,212.38,212.32,4.80978704]
[1759191598566,34.22,212.37,212.32,4.80978704]
[1759191598866,34.22,212.37,212.33,0.7]
[1759191599174,34.22,212.37,212.35,4.70920649]
[1759191599475,34.22,212.37,212.34,4.709398]
[1759191599973,34.22,212.37,212.34,31.409398]
[1759191600150,34.22,212.37,212.34,30.709398]
[1759191600353,34.22,212.37,212.35,0.7]
[1759191601670,34.22,212.37,212.36,0.7]
[1759191601853,34.2,212.39,212.36,0.7]
[1759191602175,34.2,212.39,212.37,26.0]
[1759191602352,34.2,212.39,212.38,0.7]
[1759191602548,34.2,212.39,212.34,17.18296868]
[1759191602753,34.2,212.39,212.35,0.7]
[1759191603255,34.86,212.39,212.34,30.709398]
[1759191603668,34.86,212.39,212.34,4.709398]
[1759191603864,34.86,212.39,212.34,5.409398]
[1759191604063,34.2,212.39,212.34,5.409398]
[1759191605347,34.2,212.39,212.34,4.709398]
[1759191605551,34.2,212.39,212.34,5.409398]
[1759191605976,34.86,212.39,212.34,5.409398]
[1759191606775,34.86,212.39,212.32,4.80965452]
[1759191606953,0.66,212.38,212.32,0.1]
[1759191607558,4.708763,212.37,212.32,0.1]
[1759191607758,0.66,212.36,212.32,0.1]
[1759191608676,5.36905149,212.36,212.32,0.1]
[1759191609174,0.66,212.35,212.32,0.1]
[1759191609349,34.8,212.34,212.32,0.1]
[1759191609548,131.6,212.38,212.32,0.1]
[1759191609871,34.14,212.37,212.33,0.7]
[1759191610472,131.6,212.38,212.33,26.0]
[1759191610672,131.6,212.38,212.34,0.7]
[1759191611269,136.96860798,212.38,212.32,0.1]
[1759191611567,132.26,212.38,212.32,4.80983152]
[1759191611767,136.96854153,212.38,212.32,4.80983152]
[1759191611955,132.26,212.38,212.32,4.80983152]
[1759191612155,131.6,212.38,212.33,0.7]
[1759191612380,34.14,212.39,212.34,0.7]
[1759191612763,34.14,212.39,212.35,5.40920649]
[1759191613275,0.66,212.42,212.36,0.7]
[1759191613475,34.2,212.41,212.36,0.7]
[1759191613677,132.26,212.45,212.36,0.7]
[1759191613678,0.66,212.45,212.36,0.7]
[1759191613982,34.2,212.44,212.36,0.7]
[1759191614756,34.2,212.44,212.37,4.708763]
[1759191614967,39.60724302,212.44,212.37,4.708763]
[1759191615882,34.9,212.44,212.37,16.48067051]
[1759191617188,39.60721494,212.44,212.37,4.708763]
[1759191617385,0.7,212.43,212.37,4.708763]
[1759191617566,0.7,212.42,212.36,4.70896549]
[1759191618481,34.16,212.41,212.37,0.72]
[1759191620488,34.16,212.41,212.36,4.70896549]
[1759191620489,34.86,212.41,212.36,4.70896549]
[1759191620983,34.16,212.41,212.37,0.72]
[1759191622074,3.13334574,212.45,212.38,0.68]
[1759191622271,131.6,212.46,212.38,26.68]
[1759191622590,34.12,212.44,212.38,26.68]
[1759191622969,34.12,212.44,212.39,4.7083196]
[1759191623170,34.12,212.44,212.4,0.68]
[1759191623973,34.8,212.44,212.39,16.4791186]
[1759191624378,34.8,212.44,212.39,17.1591186]
[1759191624887,34.8,212.44,212.39,5.3883196]
[1759191625693,132.28,212.46,212.4,0.68]
[1759191625896,34.1,212.45,212.4,0.68]
[1759191626192,34.1,212.45,212.39,4.7083196]
[1759191626692,34.1,212.45,212.37,11.771852]
[1759191626693,0.68,212.44,212.37,4.70857829]
[1759191626894,0.68,212.43,212.37,4.70857829]
[1759191627075,0.68,212.43,212.35,0.68]
[1759191627076,0.68,212.43,212.36,4.70898474]
[1759191627673,37.23586857,212.45,212.37,0.68]
[1759191627889,41.94296214,212.45,212.37,0.68]
[1759191628098,0.68,212.44,212.37,0.68]
[1759191629783,5.38721364,212.44,212.38,4.70854129]
[1759191630094,0.68,212.44,212.38,4.70854129]
[1759191630297,3.13661571,212.45,212.39,0.68]
[1759191630500,34.04,212.43,212.38,16.47989452]
[1759191630799,34.04,212.43,212.38,5.38854129]
[1759191631678,0.68,212.42,212.35,30.70920649]
[1759191632097,0.68,212.42,212.33,4.70965007]
[1759191632098,0.68,212.41,212.33,4.70965007]
[1759191632283,4.70769791,212.42,212.33,4.70965007]
[1759191632284,0.68,212.4,212.33,4.70965007]
[1759191632478,34.7,212.39,212.33,4.70965007]
[1759191633182,39.4084377,212.39,212.33,4.70965007]
[1759191634907,34.7,212.39,212.33,4.70965007]
[1759191635778,34.02,212.39,212.33,16.48377525]
[1759191635978,34.02,212.39,212.34,0.68]
[1759191636280,34.02,212.39,212.33,16.48377525]
[1759191636502,0.68,212.41,212.34,0.68]
[1759191636720,33.98,212.38,212.34,0.68]
[1759191636923,33.98,212.38,212.35,4.70920649]
[1759191637305,33.98,212.38,212.34,5.38941215]
[1759191637628,26.0,212.34,212.25,0.1]
[1759191637906,2.92980234,212.32,212.25,0.1]
[1759191638408,34.88,212.31,212.25,0.1]
[1759191638984,38.91031559,212.3,212.25,0.1]
[1759191639301,2.92980234,212.32,212.25,0.1]
[1759191639302,34.2,212.29,212.26,0.68]
[1759191639544,0.68,212.34,212.26,0.68]
[1759191639678,34.2,212.33,212.26,0.68]
[1759191639878,34.2,212.32,212.26,0.68]
[1759191640079,34.2,212.31,212.26,0.68]
[1759191640481,34.2,212.31,212.25,16.5899786]
[1759191640706,3.13386101,212.36,212.28,26.0]
[1759191640891,34.2,212.35,212.3,16.48610456]
[1759191641096,3.13333785,212.41,212.31,0.68]
[1759191641284,34.2,212.4,212.33,26.0]
[1759191641484,34.2,212.4,212.34,0.68]
[1759191642990,34.2,212.4,212.35,16.48222273]
[1759191643196,34.2,212.4,212.35,17.16222273]
[1759191643707,34.2,212.4,212.36,0.68]
[1759191644290,34.2,212.4,212.35,4.70920649]
[1759191644492,0.68,212.39,212.35,4.70920649]
[1759191644899,34.2,212.4,212.35,4.70920649]
[1759191645105,34.88,212.4,212.34,4.70942827]
[1759191645809,34.88,212.4,212.34,16.48299895]
[1759191646486,38.9081516,212.4,212.34,4.70942827]
[1759191646687,0.68,212.39,212.34,4.70942827]
[1759191646893,0.68,212.38,212.34,4.70942827]
[1759191647189,0.68,212.38,212.31,11.77484755]
[1759191647190,0.68,212.38,212.31,16.48494128]
[1759191647393,34.2,212.4,212.34,26.0]
[1759191647596,0.68,212.41,212.34,26.0]
[1759191647818,34.84,212.4,212.31,4.71009373]
[1759191647998,34.84,212.4,212.29,0.68]
[1759191647999,4.61882541,212.38,212.29,4.71033097]
[1759191648203,0.68,212.37,212.29,4.71033097]
[1759191648399,0.68,212.36,212.29,4.71033097]
[1759191648605,34.86,212.35,212.29,4.71033097]
[1759191648804,0.68,212.34,212.29,4.71033097]
[1759191649002,34.18,212.35,212.29,4.71033097]
[1759191650100,0.68,212.36,212.3,0.68]
[1759191650101,34.18,212.34,212.3,0.68]
[1759191650704,4.70782281,212.42,212.31,0.68]
[1759191650925,34.16,212.41,212.32,26.0]
[1759191651222,34.16,212.41,212.33,0.68]
[1759191651433,34.16,212.41,212.34,16.48299895]
[1759191651594,0.68,212.42,212.35,0.67]
[1759191651595,34.18,212.4,212.35,0.67]
[1759191651933,34.18,212.4,212.34,4.70942827]
[1759191651934,0.68,212.39,212.34,4.70942827]
[1759191652103,4.61882541,212.42,212.32,43.15433585]
[1759191652104,3.13659794,212.42,212.32,43.15433585]
[1759191652304,34.16,212.41,212.34,0.67]
[1759191653395,0.68,212.4,212.32,42.48433585]
[1759191653598,5.38825679,212.4,212.32,42.48433585]
[1759191654126,0.68,212.39,212.32,30.70965613]
[1759191654503,4.61882541,212.41,212.32,5.37965613]
[1759191654723,5.38788681,212.41,212.32,17.15433585]
[1759191654896,34.84,212.4,212.32,17.15433585]
[1759191656898,34.16,212.39,212.33,0.67]
[1759191657902,34.16,212.39,212.34,4.70942827]
[1759191658226,34.16,212.39,212.34,5.37942827]
[1759191658722,34.16,212.39,212.35,0.67]
[1759191658910,34.12,212.38,212.36,0.67]
[1759191659227,34.12,212.37,212.34,16.48299895]
[1759191659408,34.12,212.37,212.34,17.15299895]
[1759191660328,34.12,212.37,212.35,0.67]
[1759191662013,34.12,212.37,212.34,16.48299895]
[1759191662014,131.6,212.43,212.36,0.67]
[1759191662324,131.6,212.43,212.37,16.48067051]
[1759191662325,34.08,212.42,212.37,16.48067051]
[1759191662535,34.08,212.42,212.38,0.67]
[1759191663102,0.68,212.41,212.37,4.708763]
[1759191663614,34.08,212.42,212.37,4.708763]
[1759191663800,34.76,212.42,212.37,4.708763]
[1759191664200,34.76,212.42,212.37,5.378763]
[1759191664401,34.76,212.42,212.35,4.709057]
[1759191664402,0.68,212.41,212.35,4.709057]
[1759191664627,0.68,212.4,212.35,4.709057]
[1759191664806,0.68,212.39,212.35,4.709057]
[1759191665124,34.08,212.38,212.35,4.709057]
[1759191665704,34.08,212.38,212.34,4.70942827]
[1759191666321,34.08,212.38,212.33,12.44371572]
[1759191666322,0.68,212.37,212.33,4.70961493]
[1759191666717,0.68,212.36,212.3,4.71016397]
[1759191666937,0.68,212.35,212.3,4.71016397]
[1759191667232,38.78863277,212.38,212.3,4.71016397]
[1759191667233,34.76,212.34,212.3,4.71016397]
[1759191667821,34.76,212.34,212.28,16.4876578]
[1759191668429,0.68,212.38,212.29,0.67]
[1759191668619,34.08,212.37,212.29,0.67]
[1759191669917,34.08,212.37,212.3,16.48610456]
[1759191670334,38.78886206,212.37,212.3,16.48610456]
[1759191670640,0.68,212.36,212.3,16.48610456]
[1759191671029,0.68,212.36,212.3,4.71031559]
[1759191671233,0.68,212.35,212.28,4.71075937]
[1759191671434,0.68,212.34,212.28,4.71075937]
[1759191671734,34.06,212.33,212.28,4.71075937]
[1759191671937,34.06,212.33,212.27,4.71098129]
[1759191671938,34.74,212.33,212.27,4.71098129]
[1759191673229,0.68,212.32,212.27,4.71098129]
[1759191673419,0.68,212.31,212.27,4.71098129]
[1759191674119,34.06,212.33,212.27,5.38098129]
[1759191675453,3.81652402,212.37,212.28,0.69]
[1759191675751,0.68,212.37,212.28,0.69]
[1759191675923,34.04,212.36,212.28,0.69]
[1759191676117,3.81652402,212.39,212.28,0.69]
[1759191676325,34.04,212.38,212.28,0.69]
[1759191676537,0.68,212.37,212.28,0.69]
[1759191676844,34.04,212.38,212.28,0.69]
[1759191677025,3.81652402,212.39,212.28,0.69]
[1759191677229,3.81652402,212.39,212.31,26.0]
[1759191677230,3.13652402,212.39,212.31,26.0]
[1759191677423,34.06,212.39,212.32,17.17455161]
[1759191677622,34.06,212.39,212.33,0.69]
[1759191678838,34.74,212.39,212.32,16.48455161]
[1759191682143,34.74,212.39,212.32,17.15455161]
[1759191683730,34.0,212.38,212.33,0.67]
[1759191684040,34.0,212.4,212.35,26.0]
[1759191684244,34.0,212.4,212.36,0.67]
[1759191684444,34.0,212.4,212.32,16.48455161]
[1759191684622,0.68,212.39,212.32,43.15455161]
[1759191686745,34.0,212.4,212.33,0.67]
[1759191686932,34.0,212.4,212.38,1.87484103]
[1759191687938,3.81752752,212.44,212.38,4.70853906]
[1759191688252,34.0,212.43,212.39,1.87484103]
[1759191688445,34.0,212.42,212.39,2.54484103]
[1759191688745,34.0,212.41,212.39,0.67]
[1759191688949,131.6,212.45,212.39,0.67]
[1759191688950,131.6,212.45,212.41,1.87484103]
[1759191689153,34.0,212.44,212.41,1.87484103]
[1759191689844,34.0,212.44,212.42,4.70765464]
[1759191690828,34.0,212.44,212.39,0.67]
[1759191691245,34.0,212.44,212.41,1.87484103]
[1759191692445,34.0,212.44,212.41,6.58264798]
[1759191695237,34.0,212.44,212.41,4.70780695]
[1759191696156,34.0,212.44,212.4,4.70809792]
[1759191696357,34.0,212.44,212.4,5.37809792]
[1759191697752,34.68,212.44,212.4,4.70809792]
[1759191697947,34.0,212.44,212.4,5.37809792]
[1759191701055,131.6,212.45,212.4,5.37809792]
[1759191701056,131.6,212.45,212.41,0.67]
[1759191701264,131.6,212.45,212.4,16.47834274]
[1759191701265,33.86,212.44,212.4,16.47834274]
[1759191701448,33.86,212.44,212.41,0.67]
[1759191701634,33.86,212.44,212.42,0.67]
[1759191701830,0.68,212.52,212.42,0.67]
[1759191702037,0.68,212.52,212.43,27.87484103]
[1759191702238,136.30503535,212.54,212.46,1.87484103]
[1759191702239,33.88,212.51,212.46,1.87484103]
[1759191702469,33.88,212.5,212.47,0.67]
[1759191702771,33.88,212.5,212.48,0.67]
[1759191703070,33.88,212.5,212.49,4.70610381]
[1759191703766,33.88,212.5,212.49,5.37610381]
[1759191704959,33.88,212.5,212.47,4.7065468]
[1759191705171,33.88,212.5,212.47,5.3765468]
[1759191705354,33.88,212.5,212.48,0.67]
[1759191705955,33.84,212.5,212.48,0.67]
[1759191706160,33.84,212.5,212.47,16.47291381]
[1759191706466,33.84,212.5,212.47,17.14291381]
[1759191707089,33.84,212.5,212.48,0.67]
[1759191707463,33.84,212.5,212.49,0.67]
[1759191708242,33.84,212.5,212.49,5.37610381]
[1759191708978,33.82,212.51,212.49,17.14136335]
[1759191709281,33.82,212.51,212.49,4.70610381]
[1759191709757,33.82,212.51,212.49,5.37610381]
[1759191709962,33.82,212.51,212.49,4.70610381]
[1759191712058,33.82,212.51,212.48,4.706236]
[1759191713471,33.82,212.51,212.48,5.366236]
[1759191713662,33.82,212.51,212.48,17.13204925]
[1759191715748,33.82,212.51,212.49,0.66]
[1759191715953,33.82,212.51,212.48,16.47204925]
[1759191716572,33.82,212.51,212.48,11.76581325]
[1759191716775,0.68,212.5,212.47,4.7065468]
[1759191716977,0.68,212.49,212.44,4.70721144]
[1759191717272,0.68,212.48,212.44,4.70721144]
[1759191717458,0.68,212.47,212.44,4.70721144]
[1759191717775,33.72,212.46,212.44,4.70721144]
[1759191717986,0.68,212.45,212.43,4.70740519]
[1759191718187,33.72,212.46,212.39,16.47864957]
[1759191718478,0.68,212.44,212.39,16.47864957]
[1759191718652,0.68,212.44,212.39,17.13864957]
[1759191718854,33.72,212.46,212.4,0.66]
[1759191720280,0.68,212.5,212.41,16.47756696]
[1759191720485,2.92665598,212.53,212.41,16.47756696]
[1759191720486,34.42,212.49,212.42,0.66]
[1759191720858,34.42,212.49,212.41,42.47756696]
[1759191721054,34.42,212.49,212.41,4.70787627]
[1759191721055,0.68,212.48,212.41,4.70787627]
[1759191721276,0.68,212.47,212.41,4.70787627]
[1759191721479,0.68,212.46,212.41,4.70787627]
[1759191721678,0.68,212.45,212.41,4.70787627]
[1759191721869,33.74,212.44,212.41,4.70787627]
[1759191722096,34.42,212.44,212.41,4.70787627]
[1759191722383,34.42,212.44,212.38,17.13951779]
[1759191723483,33.74,212.44,212.38,17.13951779]
[1759191723964,0.68,212.43,212.38,4.70854129]
[1759191724162,0.68,212.42,212.38,4.70854129]
[1759191725194,0.68,212.41,212.34,4.70942827]
[1759191725360,0.68,212.4,212.34,4.70942827]
[1759191725560,33.72,212.39,212.34,4.70942827]
[1759191725775,0.68,212.38,212.34,4.70942827]
[1759191726082,33.72,212.39,212.33,4.70965007]
[1759191726083,0.68,212.37,212.33,4.70965007]
[1759191727078,33.72,212.39,212.33,4.70965007]
[1759191727384,0.68,212.36,212.33,4.70965007]
[1759191727682,0.68,212.36,212.31,4.71009373]
[1759191727876,0.68,212.36,212.31,5.37009373]
[1759191728058,34.4,212.39,212.32,0.66]
[1759191728463,33.7,212.39,212.32,0.66]
[1759191728783,33.7,212.41,212.34,26.0]
[1759191728968,33.7,212.41,212.35,0.66]
[1759191729572,0.68,212.46,212.35,0.66]
[1759191729771,33.72,212.45,212.36,16.48144659]
[1759191729970,34.4,212.45,212.37,0.66]
[1759191731083,34.4,212.45,212.36,16.48144659]
[1759191731084,4.70721144,212.44,212.38,4.70854129]
[1759191731277,0.68,212.43,212.34,4.70942827]
[1759191731469,0.68,212.42,212.34,4.70942827]
[1759191731677,3.60665598,212.41,212.33,4.70961633]
[1759191731984,34.38,212.4,212.33,4.70961633]
[1759191732187,0.68,212.39,212.33,4.70961633]
[1759191732391,33.7,212.4,212.33,4.70961633]
[1759191732567,0.68,212.38,212.3,16.48564466]
[1759191732763,0.68,212.37,212.3,16.48564466]
[1759191733773,0.68,212.37,212.3,17.14564466]
[1759191734797,4.70884423,212.37,212.3,4.71031559]
[1759191734993,0.68,212.36,212.3,4.71031559]
[1759191736276,42.01588293,212.35,212.29,4.71053747]
[1759191737110,41.33588293,212.35,212.27,4.71079423]
[1759191737286,2.92665598,212.32,212.27,4.71079423]
[1759191737601,3.60665598,212.32,212.26,5.39117328]
[1759191738296,8.31664063,212.32,212.26,5.39117328]
[1759191739000,2.92665598,212.32,212.26,5.39117328]
[1759191740099,3.60665598,212.32,212.26,5.39117328]
[1759191740277,8.31653078,212.32,212.26,5.39117328]
[1759191740807,3.60665598,212.32,212.26,5.39117328]
[1759191740975,2.92665598,212.32,212.26,5.39117328]
[1759191741175,7.63653729,212.32,212.26,5.39117328]
[1759191741379,8.31653729,212.32,212.26,4.71117328]
[1759191741686,33.7,212.31,212.27,0.67]
[1759191742200,33.7,212.31,212.26,16.48918138]
[1759191742201,33.7,212.3,212.28,5.38071959]
[1759191742396,139.23611136,212.34,212.28,5.38071959]
[1759191742577,33.7,212.33,212.29,0.67]
[1759191743690,33.7,212.33,212.29,5.38036674]
[1759191744094,33.72,212.32,212.29,0.67]
[1759191745297,33.72,212.32,212.26,11.7780081]
[1759191745298,33.72,212.32,212.26,5.38099017]
[1759191746181,38.42991135,212.32,212.26,5.38099017]
[1759191746380,33.72,212.32,212.27,0.67]
[1759191746697,33.72,212.31,212.28,0.67]
[1759191747602,33.72,212.31,212.27,4.71077986]
[1759191747778,33.72,212.31,212.27,5.38077986]
[1759191748402,0.68,212.3,212.26,4.71118316]
[1759191748599,0.68,212.3,212.25,0.77]
[1759191748600,0.68,212.29,212.25,0.1]
[1759191749503,0.68,212.28,212.25,0.1]
[1759191749803,34.4,212.27,212.25,0.1]
[1759191750608,33.72,212.27,212.25,0.1]
[1759191751315,0.68,212.26,212.25,0.1]
[1759191751612,2.92665598,212.26,212.25,0.1]
[1759191751911,3.60665598,212.26,212.25,0.1]
[1759191752134,33.72,212.27,212.25,0.1]
[1759191752413,33.78,212.26,212.25,0.77]
[1759191752914,33.78,212.26,212.25,0.1]
[1759191754711,33.78,212.26,212.25,0.77]
[1759191755111,33.78,212.26,212.25,4.8114252]
[1759191756322,33.78,212.26,212.25,0.1]
[1759191758513,33.78,212.26,212.25,0.77]
[1759191758911,33.78,212.26,212.25,5.4814252]
[1759191759130,33.78,212.26,212.25,4.8114252]
[1759191760094,33.78,212.26,212.25,0.1]
[1759191760316,33.78,212.26,212.25,4.8114252]
[1759191760494,33.78,212.26,212.25,0.1]
[1759191760813,39.17120324,212.26,212.25,0.1]
[1759191761019,34.46,212.26,212.25,0.1]
[1759191762919,33.78,212.26,212.25,0.1]
[1759191763215,33.78,212.26,212.25,0.77]
[1759191763626,33.78,212.26,212.25,0.1]
[1759191764533,38.49120324,212.26,212.25,0.1]
[1759191764737,33.78,212.26,212.25,0.1]
[1759191764924,33.78,212.26,211.98,23.07133937]
[1759191764925,42.09785922,212.26,212.11,4.81161913]
[1759191765127,42.09785922,212.26,212.11,0.1]
[1759191765128,2.92665598,212.2,212.11,0.1]
[1759191765327,34.68,212.19,212.11,0.1]
[1759191765531,5.39297954,212.18,212.11,0.1]
[1759191765728,0.68,212.17,212.11,0.1]
[1759191765918,34.0,212.16,212.11,0.1]
[1759191766120,34.0,212.16,212.11,4.81453172]
[1759191766312,34.0,212.16,212.11,0.77]
[1759191766519,34.0,212.16,212.11,5.48453087]
[1759191766932,34.0,212.16,212.11,0.77]
[1759191767149,34.0,212.16,212.11,0.1]
[1759191767545,34.04,212.15,212.11,0.77]
[1759191769741,38.753646,212.15,212.11,0.77]
[1759191771336,39.433646,212.15,212.11,0.1]
[1759191771539,38.753646,212.15,212.11,0.1]
[1759191771837,34.04,212.15,212.11,0.77]
[1759191772059,34.04,212.15,212.11,5.48451282]
[1759191772421,34.04,212.15,212.12,0.77]
[1759191772930,34.04,212.15,212.14,1.27793135]
[1759191773127,34.04,212.15,212.14,0.60793135]
[1759191773743,34.04,212.15,212.14,1.27793135]
[1759191773949,34.04,212.15,212.14,5.99179955]
[1759191774158,34.7,212.15,212.14,0.60793135]
[1759191774355,36.58032449,212.15,212.14,0.60793135]
[1759191774719,34.7,212.15,212.14,0.60793135]
[1759191774920,34.22,212.15,212.14,0.60793135]
[1759191778247,20.0,212.28,212.14,0.60793135]
[1759191778248,3.88836938,212.33,212.17,20.0]
[1759191778456,4.56836938,212.42,212.26,13.59559401]
[1759191778750,4.56836938,212.42,212.29,26.0]
[1759191778751,13.90792336,212.41,212.29,26.0]
[1759191779047,13.90792336,212.41,212.31,1.88012353]
[1759191779352,0.68,212.4,212.31,0.67]
[1759191780253,4.7083196,212.39,212.31,0.67]